Cogmind - Beta 11.1 @@@ ROGUE MODE // 2022.06.10 @ 15:04:43 Player: ILikeGoodFood Result: Self-destructed Performance ------------- Evolutions (2) 1000 Regions Visited (3) 600 Robots Destroyed (80) 400 Value Destroyed (2451) 2451 Prototype IDs (4) 80 Alien Tech Used (0) 0 Bonus (146) 146 TOTAL SCORE: 4677 Bonus ------- High Alert Combat Kills 146 Cogmind --------- Core Integrity 326/550 Matter 292/300 Energy 325/325 System Corruption 0% Temperature Warm (145) Movement Treading (160) Location -8/Materials Parts ------- > --- POWER (2) -------- Improved Ion Engine Light Nuclear Core > --- PROPULSION (2) --- Light Treads Light Treads > --- UTILITY (4) ------ Sensor Array Signal Interpreter Improved Targeting Computer > --- WEAPON (3) ------- Particle Gun Improved Medium Laser > --- INVENTORY (5) ---- Improved Cooling System Advanced Visual Processing Unit Core Analyzer Armor Integrity Analyzer Peak State ------------ > --- POWER ------------ Improved Ion Engine Improved Deuterium Engine > --- PROPULSION ------- Light Treads Light Treads > --- UTILITY ---------- Improved Heat Sink Sensor Array Signal Interpreter Improved Targeting Computer > --- WEAPON ----------- Heavy Assault Rifle Gauss Rifle Flak Cannon > --- INVENTORY -------- Improved Cooling System Advanced Visual Processing Unit Sensor Array Armor Integrity Analyzer [Rating: 25] Favorites ----------- Power Light Nuclear Core Engine Improved Ion Engine Power Core Light Nuclear Core Propulsion Light Treads Treads Light Treads Leg Aluminum Leg Wheel Wheel Utility Signal Interpreter Device Heat Sink Storage Small Storage Unit Processor Signal Interpreter Protection Light Armor Plating Weapon Beam Cannon Energy Gun Beam Rifle Energy Cannon Beam Cannon Ballistic Gun Heavy Assault Rifle Ballistic Cannon Flak Cannon Special Weapon Mining Laser Build | -11 -10 -9 -8 ------- Run | Scr Mat Mat Mat Slots Evolved 4 | . . 2 2 Power 1 | . . . 1 Propulsion . | . . . . Utility 2 | . . 2 . Weapon 1 | . . . 1 Parts Attached 76 | 7 9 37 23 Power 16 | 1 2 7 6 Engine 10 | 1 2 4 3 Core 6 | . . 3 3 Reactor . | . . . . Propulsion 18 | 3 2 8 5 Treads 12 | . . 7 5 Leg 3 | . 2 1 . Wheel 3 | 3 . . . Hover . | . . . . Flight . | . . . . Utility 19 | 1 3 11 4 Device 9 | . 2 5 2 Storage 1 | 1 . . . Processor 5 | . 1 4 . Hackware . | . . . . Protection 4 | . . 2 2 Artifact . | . . . . Weapon 23 | 2 2 11 8 Energy Gun 8 | 2 . 4 2 Energy Cannon 7 | . 2 4 1 Ballistic Gun 5 | . . 2 3 Ballistic Cannon 1 | . . . 1 Launcher . | . . . . Special Weapon 2 | . . 1 1 Impact Weapon . | . . . . Slashing Weapon . | . . . . Piercing Weapon . | . . . . Special Melee Weapon . | . . . . Unidentified Prototypes . | . . . . Parts Lost 29 | . 5 9 15 Power 6 | . 1 2 3 Propulsion 7 | . 2 2 3 Utility 7 | . 1 2 4 Weapon 9 | . 1 3 5 Highest Loss Streak 9 | . 5 2 9 To Critical Strikes 1 | . . 1 . Average Slot Usage (%) 90 | . 83 90 93 Engine 7 | . 13 4 7 Core 5 | . . 5 7 Treads 14 | . . 17 16 Leg 3 | . 13 2 . Device 14 | . 10 18 11 Storage 1 | . 14 . . Processor 14 | . . 16 18 Protection 3 | . . 3 5 Energy Gun 5 | . 5 5 6 Energy Cannon 10 | . 19 12 3 Ballistic Gun 6 | . . 3 14 Naked Turns . | . . . . Heaviest Build 34 | 14 17 18 34 Greatest Support 45 | 26 20 45 40 Greatest Overweight (x) 5 | 2 5 4 1 Average Overweight (x) . | . . . . Largest Inventory Capacity 8 | 8 8 5 5 Average Capacity 5 | 6 7 5 5 Most Carried 5 | 2 5 5 5 Average Carried 4 | 1 2 4 4 Final Capacity 8 | 8 5 5 5 Final Carried 5 | 1 4 5 4 Class Distribution -------------------- 46% | Mutant 22% | Scavenger-Mutant 22% | Scavenger-Gunner 8% | Scavenger-Skirmisher Dominant Class ---------------- Mutant | -10/Materials Mutant | -9/Materials Scavenger-Gunner | -8/Materials Resources | -11 -10 -9 -8 ----------- Run | Scr Mat Mat Mat Matter Collected 1622 | 270 65 610 677 Remotely . | . . . . Salvage Created 3184 | 90 321 1476 1297 Parts 181 | 3 24 89 65 Haulers Intercepted 4 | . . 3 1 Recyclers Shooed 2 | 1 . . 1 Parts Field Recycled . | . . . . Retrieved Matter . | . . . . Parts Self-Destructed . | . . . . Prevented . | . . . . Kills | -11 -10 -9 -8 ------- Run | Scr Mat Mat Mat Combat Hostiles Destroyed 58 | . 9 30 19 Guns 25 | . 5 8 12 Cannons 31 | . 4 22 5 Classes Destroyed 13 | 2 3 6 2 Worker 2 | . . 1 1 Builder 3 | . . 1 2 Tunneler 1 | 1 . . . Hauler 4 | . . 3 1 Recycler 4 | 1 . 1 2 Watcher 8 | . 2 3 3 Swarmer 9 | . 3 6 . Grunt 28 | . 6 15 7 Brawler 1 | . . 1 . Duelist 2 | . . 1 1 Sentry 13 | . . 7 6 Specialist 4 | . . . 4 Hunter 1 | . . . 1 Best Kill Streak 8 | 2 4 8 4 Combat Bots Only 5 | . 4 5 3 Max Kills in Single Turn 2 | 1 1 2 2 Gunslinging . | . . . . Exploded . | . . . . Melee . | . . . . Uniques/NPCs Destroyed . | . . . . Combat | -11 -10 -9 -8 -------- Run | Scr Mat Mat Mat Damage Taken 4434 | . 677 1688 2069 Core 732 | . 211 297 224 Absorbed by Shields . | . . . . Regen/Repaired (Parts) 61 | . . 46 15 Core Remaining (%) 46 | 100 15 25 . Volleys Fired 233 | 3 37 118 75 Largest 3 | 2 2 2 3 Hottest 149 | 100 120 120 149 Shots Fired 484 | 6 53 215 210 Gun 252 | 6 35 61 150 Cannon 228 | . 18 150 60 Launcher . | . . . . Special 4 | . . 4 . Kinetic 165 | . . 27 138 Thermal 319 | 6 53 188 72 Explosive . | . . . . Electromagnetic . | . . . . Robot Hit Streak 16 | 6 9 16 12 Robot Miss Streak 4 | . 3 4 4 Penetration Max 1 | . . . 1 Secondary Targets 1 | . 1 . . Max Gunslinging Chain 1 | . 1 . . Shots Hit Robots 326 | 6 33 139 148 Core Hits 129 | 3 14 57 55 Critical Kills 3 | . . . 3 Critical Parts Destroyed . | . . . . Critical Strikes 8 | . 3 . 5 Burn 5 | . 3 . 2 Meltdown 2 | . . . 2 Destroy 1 | . . . 1 Melee Attacks . | . . . . Impact . | . . . . Slashing . | . . . . Piercing . | . . . . Sneak Attacks . | . . . . Combat Hostiles . | . . . . Follow-up Attacks . | . . . . Damage Inflicted 5568 | 74 492 2313 2689 Guns 2656 | 74 313 566 1703 Cannons 2810 | . 176 1648 986 Explosions . | . . . . Melee . | . . . . Ramming 6 | . 3 3 . Kinetic 1952 | . . 269 1683 Thermal 3610 | 74 489 2041 1006 Explosive . | . . . . Electromagnetic . | . . . . Impact . | . . . . Slashing . | . . . . Piercing . | . . . . Highest Corruption 5 | . . 5 . Average Corruption 5 | . . 5 . Corruption Purged . | . . . . Corruption Blocked . | . . . . Effects 40 | . . 40 . Message Errors 12 | . . 12 . Matter Fused 7 | . . 7 . Heat Flow Errors 3 | . . 3 . Energy Discharges 6 | . . 6 . Parts Rejected 1 | . . 1 . Data Loss (minor) 6 | . . 6 . Data Loss (major) 2 | . . 2 . Misfires 1 | . . 1 . Weapon Failures 2 | . . 2 . Overload Shots . | . . . . Overflow Damage 30 | . . 28 2 Projectiles 30 | . . 28 2 Explosions . | . . . . Melee . | . . . . Knockbacks 6 | . . . 6 Impact . | . . . . Kinetic 6 | . . . 6 Secondary . | . . . . Self-Inflicted Damage . | . . . . Shots . | . . . . Rammed 3 | . 1 2 . Targets Rammed 4 | . 2 2 . Kicked 1 | . 1 . . Crushed . | . . . . Highest Temperature 481 | 78 481 421 233 Average Temperature 129 | 37 220 136 49 Received Heat Transfer 1644 | . 360 627 657 Effects 13 | . 2 11 . Shutdowns 3 | . 2 1 . Energy Bleed 3 | . . 3 . Interference 1 | . . 1 . Matter Decay 2 | . . 2 . Short Circuit 2 | . . 2 . Damage (minor) 2 | . . 2 . Siege Activations . | . . . . Robots Corrupted . | . . . . Combat Hostiles . | . . . . Parts Fried . | . . . . Impact Corruptions . | . . . . Robots Melted 2 | . . . 2 Combat Hostiles 2 | . . . 2 Parts Melted 19 | 1 4 7 7 Heat Transferred 8036 | 222 1517 4262 2035 Parts Sabotaged . | . . . . Parts Stolen . | . . . . Parts Stripped . | . . . . Power Chain Reactions . | . . . . Missiles Intercepted . | . . . . Alert | -11 -10 -9 -8 ------- Run | Scr Mat Mat Mat Peak Influence 597 | 10 215 597 260 Initial 180 | . 6 22 180 Average 238 | 3 96 352 152 Maximum Alert Level 2 | . 1 2 1 Low Security (%) 50 | 100 71 26 71 Level 1 22 | . 28 17 28 Level 2 26 | . . 55 . Level 3 . | . . . . Level 4 . | . . . . Level 5 . | . . . . High Security . | . . . . Max Security . | . . . . Squads Dispatched 12 | . 3 5 4 Investigation 4 | . 2 1 1 Extermination . | . . . . Reinforcement 7 | . 1 3 3 Assault 1 | . . 1 . Garrison . | . . . . Intercept . | . . . . Searches Triggered . | . . . . Construction Impeded . | . . . . Haulers Reinforced . | . . . . Active Scanning Responses . | . . . . Cargo Convoy Interrupts . | . . . . Stealth | -11 -10 -9 -8 --------- Run | Scr Mat Mat Mat Distress Signals 7 | . . 4 3 Communications Jammed . | . . . . Distress Signals . | . . . . Times Spotted 95 | . 17 48 30 Peak Tracking Total 8 | . 5 8 8 Tactical Retreats 5 | . . 3 2 Traps | -11 -10 -9 -8 ------- Run | Scr Mat Mat Mat Traps Triggered 3 | . 2 . 1 Indirectly . | . . . . Trap Hack Attempts . | . . . . Triggered . | . . . . Disarmed . | . . . . Reprogrammed . | . . . . Reused . | . . . . Traps Extracted . | . . . . Installed . | . . . . Triggered . | . . . . Machines | -11 -10 -9 -8 ---------- Run | Scr Mat Mat Mat Machines Disabled 6 | . 1 2 3 Max in Single Turn 1 | . 1 1 1 Machines Sabotaged . | . . . . Garrisons Compromised . | . . . . Overloaded Fab Kills . | . . . . Hacking | -11 -10 -9 -8 --------- Run | Scr Mat Mat Mat Machines Accessed 15 | . 2 8 5 Terminals 11 | . 2 6 3 Fabricators . | . . . . Repair Stations 2 | . . 1 1 Recycling Units . | . . . . Scanalyzers 1 | . . 1 . Garrison Access 1 | . . . 1 Total Hacks 52 | . 6 32 14 Successful 30 | . 3 19 8 Failed 22 | . 3 13 6 Catastrophic 3 | . 1 2 . Database Lockouts . | . . . . Manual 18 | . 4 11 3 Terminals 37 | . 6 20 11 Fabricators . | . . . . Repair Stations 6 | . . 4 2 Recycling Units . | . . . . Scanalyzers 8 | . . 8 . Garrison Access 1 | . . . 1 Terminal Hacks 15 | . 2 8 5 Prototype ID Bank 2 | . . 1 1 Alert Level 1 | . . 1 . Unreport Threat 2 | . . 1 1 Locate Traps 5 | . 2 2 1 Dispatch Records 1 | . . 1 . Recall Investigation 1 | . . 1 . Registered Components 1 | . . . 1 Zone Layout 2 | . . 1 1 Fabricator Hacks . | . . . . Repair Station Hacks 5 | . . 3 2 Scan Component 3 | . . 2 1 Repair 2 | . . 1 1 Recycling Unit Hacks . | . . . . Scanalyzer 6 | . . 6 . Insert Component 3 | . . 3 . Analyze 3 | . . 3 . Garrison Access Hacks 1 | . . . 1 Unlock Access 1 | . . . 1 Unauthorized Hacks 3 | . 1 2 . Terminals 3 | . 1 2 . Assimilate 3 | . 1 2 . Fabricators . | . . . . Repair Stations . | . . . . Recycling Units . | . . . . Scanalyzers . | . . . . Garrison Access . | . . . . Data Cores Recovered . | . . . . Used . | . . . . Hacking Detections 13 | . 2 8 3 Full Trace Events 3 | . . 2 1 Feedback Events . | . . . . Feedback Blocked . | . . . . Robot Schematics Acquired . | . . . . Robots Built . | . . . . Authchips . | . . . . Time . | . . . . Total Robot Build Rating . | . . . . Part Schematics Acquired 3 | . . 3 . Parts Built . | . . . . Authchips . | . . . . Time . | . . . . Total Part Build Rating . | . . . . Parts Repaired 2 | . . 1 1 Time 64 | . . 38 26 Parts Recycled . | . . . . Recycled Matter . | . . . . Retrieved Matter . | . . . . Retrieved Components . | . . . . Parts Scanalyzed 3 | . . 3 . Part Schematics Acquired 3 | . . 3 . Parts Damaged . | . . . . Bothacking | -11 -10 -9 -8 ------------ Run | Scr Mat Mat Mat Used RIF Installer . | . . . . Robots Hacked . | . . . . Non-combat . | . . . . Combat . | . . . . Robot Hacks Applied . | . . . . Relay Couplers Released . | . . . . Fabnet Peak Effective % . | . . . . Robots Rewired . | . . . . Allies Hacked . | . . . . Hacks Repelled . | . . . . Allies | -11 -10 -9 -8 -------- Run | Scr Mat Mat Mat Total Allies . | . . . . Largest Group . | . . . . Highest-Rated Group . | . . . . Highest-Rated Ally . | . . . . Total Orders . | . . . . Ally Attacks . | . . . . Total Damage . | . . . . Kills . | . . . . Allies Corrupted . | . . . . Allies Melted . | . . . . Intel | -11 -10 -9 -8 ------- Run | Scr Mat Mat Mat Robot Analysis Total . | . . . . Derelict Logs Recovered . | . . . . Drone Launches . | . . . . Drone Recoveries . | . . . . Exploration | -11 -10 -9 -8 ------------- Run | Scr Mat Mat Mat Turns Passed 3899 | 65 539 1872 1423 Spaces Moved 1971 | 44 311 945 671 Core 64 | 15 45 4 . Treads 1481 | . . 810 671 Legs 333 | . 202 131 . Wheels 93 | 29 64 . . Hover . | . . . . Flight . | . . . . Fastest Speed 50 | 50 80 120 160 Average Speed 148 | 92 130 146 163 Slowest Speed 300 | 150 300 250 240 Overloaded Moves . | . . . . Propulsion Burnouts . | . . . . Robots Hopped . | . . . . Cave-ins Triggered . | . . . . Exploration Rate (%) 40 | 4 48 69 40 Regions Visited 3 Branch Regions . Pre-discovered Areas . | . . . . Known Exits Taken 2 | . 1 1 . Unknown Exits Taken 1 | 1 . . . Scrap Searched . | . . . . Spaces Dug . | . . . . Terrain Destroyed 4 | . . . 4 Melee . | . . . . Projectile 4 | . . . 4 AOE . | . . . . Terrain Rammed . | . . . . Walls Destroyed . | . . . . Machines Disabled . | . . . . Actions | -11 -10 -9 -8 --------- Run | Scr Mat Mat Mat Total 2492 | 62 390 1205 835 Wait 114 | . 18 60 36 Move 1968 | 43 310 944 671 Hop . | . . . . Pick Up 60 | 8 11 21 20 Fast Attach 19 | . . 14 5 Attach 43 | 7 8 13 15 Detach 1 | . 1 . . Swap 14 | . 1 10 3 Drop 36 | 1 2 23 10 Fire 233 | 3 37 118 75 Melee . | . . . . Ram 1 | . 1 . . Kick 1 | . 1 . . Crush 2 | . . 2 . Escape Stasis . | . . . . Rewire . | . . . . Trap . | . . . . Miscellaneous . | . . . . Route ------- -11/Scrapyard -10/Materials (discovered 2 exits: *Mat / [*Min]) -9/Materials (discovered 3 exits: *Mat x2 / [*Sto]) -8/Materials (discovered 2 exits: *Fac / Gar) History --------- Turn | Location | Event 14 | -11/Scrapyard | Discovered new exit (range 16) 66 | -11/Scrapyard | Entered Materials 182 | -10/Materials | Core integrity fell below 50% 214 | -10/Materials | Lost 5 parts (1p2n1u1w) 305 | -10/Materials | Core integrity fell below 20% 307 | -10/Materials | Build established: Mutant 391 | -10/Materials | Discovered new exit (range 12) 529 | -10/Materials | Discovered new exit (range 15) 605 | -10/Materials | Identified exit to Materials 605 | -10/Materials | Entered another Materials area 605 | -9/Materials | Evolved 2 slots: Utility x2 1143 | -9/Materials | Discovered new exit (range 13) 1345 | -9/Materials | Discovered new exit (range 8) 1391 | -9/Materials | Identified exit to Materials 1629 | -9/Materials | Discovered exit to Materials (range 12) 1730 | -9/Materials | Repaired Lgt. Nuclear Core 1805 | -9/Materials | First assault squad dispatched 1909 | -9/Materials | Core integrity fell below 50% 2271 | -9/Materials | Build established: Scavenger-Mutant 2477 | -9/Materials | Entered another Materials area 2477 | -8/Materials | Evolved 2 slots: Power x1, Weapon x1 2814 | -8/Materials | Build established: Scavenger-Gunner 3008 | -8/Materials | Repaired Lgt. Treads 3423 | -8/Materials | Lost 9 parts (2p2n2u3w) 3578 | -8/Materials | Discovered new exit (range 11) 3605 | -8/Materials | Lost 3 parts (1p1n1w) 3640 | -8/Materials | Identified exit to Factory 3762 | -8/Materials | Identified exit to Garrison 3896 | -8/Materials | Build established: Scavenger-Skirmisher 3900 | -8/Materials | Self-destructed Last Messages --------------- Retrieving component inventory records... Found 7 registered component stockpiles: 3VGQKEI31N: Weight Redist. System OD2ICO5XVY: Nuclear Core DSAWQ4416D: EM Pulse Gun 09XRHXC96I: Flak Cannon SSG96UX7CR: Imp. Sensor Array YX5DWUJCOF: Assault Cannon NVXKHAZ589: Hpw. Shotgun Downloaded coordinate data. >>Layout(Zone) Retrieving Zone 4V layout... Downloaded map data. ALERT: Suspicious activity at Terminal M005. Dispatching Investigation squad. Slug penetrates Fusion Modulator. Imp. Heat Sink destroyed. Slug penetrates G-47 Trooper. Gauss Rifle destroyed. T-07 Excavator is excavating. Map ----- +----------------------------------------------------+ | | | | | | | | | | | | | | | | | | | | | | | | | | | | | | | | | ????????????????????##########?????????????????? | | ????????????????????#! #?????????????????? | | ????????????????????# ############??????? | | ????????????????????# =] " " # #??????? | | ???????????########?# ]] "Y" + #??????? | | ???????????########?# """ ###### ##########? | | ??????????? t #####?# #????# # ! #? | | ??????????# ##+#####+####### + """ #? | | ??????????? g # """ #? | | ??????????? # # @g # """ "" #? | | ???????????##############/######+##### "" #? | | ???????????########?# # # """ T" #? | | ???????????########?# T # """ # """ "" #? | | ????????????????????# # """ # """ "" #? | | ????????????????????# """ # """ # #? | | ????????????????????# """ # ##########? | | ????????????????????# """ # ! ">" #?????????? | | ????????????????????# Y # "G" #?????????? | | ????????????????????# """ # ] " #?????????? | | ????????????????????# """ # ==!#?????????? | | ????????????????????# """ ###+###"##?????????? | | ????????????????????# #?# #?#%#??????????? | | ????????????????????##### ###?# #?#=#??????????? | | ????????????????????????###???# #?#=#??????????? | | ??????????????????????????????# #?# #??????????? | | ??????????????????????????????# #?# #??????????? | | ????????????????????????####### #?# #??????????? | | ????????????????????????# #?# #??????????? | | ??????????????????????????????????# #??????????? | | ??????????????????????????????????# #??????????? | | ??????????????????????????????????# #??????????? | | ?????????????????????????????????## ##?????????? | | ???????????????????????????# ## ########??? | | ???????????????????????????# #??? | +----------------------------------------------------+ Best States ------------- Heat Dissipation 53 Coolant Potential 50 Energy Generation 23 Energy Capacity 455 Matter Stores 300 Matter Capacity 300 Sight Range 18 Robot Scan Range 14 Terrain Scan Density 10 Armor Coverage 225 Evasion (%) 55 Targeting Accuracy 6 Recoil Reduction 2 Item Schematics ----------------- Lgt. Nuclear Core | -9/Materials | Scanalyzed Adv. Treads | -9/Materials | Scanalyzed Mining Laser | -9/Materials | Scanalyzed Robot Schematics ------------------ None Fabricated ------------ Nothing Alien Tech Used ----------------- None Achievements -------------- None Challenges ------------ None Game ------ Seed XenonAerolevPropulsion Manual? 0 Play Time 00:51:49 Cumulative 34.7 hours Start 2022.06.10 @ 13:23:24 End 2022.06.10 @ 15:04:43 Sessions 1 Manual Loads 0 Difficulty Rogue Special Mode None Game No. 58 Rogue 58 Adventurer 0 Explorer 0 Win Type - Total 0 Types 0/0/0/0/0/0/0/0/0 Lore% 20 Gallery% 27 Achievement% 22 Wizard Run 0 Options --------- ASCII 0 Keyboard 0 Movement Mouse Keybinds 0 Fullscreen 2 Font 18/SmallcapsGlow Map View 76x50 Tactical HUD 0 Map Filters NONE Filters NONE Steam 1 RUN: abd18974-b50f-44a0-88cb-44f040577705